[Event "*** SCC Grand Prix: Titled Tuesday Blitz"]
[Site "Chess.com"]
[Date "2020.08.25"]
[Round "10"]
[White "BanjoKazooieN64"]
[Black "FMalexhdez"]
[Result "0-1"]
[WhiteElo "2336"]
[BlackElo "2172"]
[TimeControl "180+1"]
[EndTime "11:59:49 PDT"]
[Termination "FMalexhdez won by resignation"]

1. e4 {[%clk 0:03:00.9]} 1... c5 {[%clk 0:02:59.9]} 2. Nc3 {[%clk 0:03:00.7]}
2... d6 {[%clk 0:03:00.5]} 3. f4 {[%clk 0:02:57.5]} 3... Nc6 {[%clk 0:03:00.8]}
4. Nf3 {[%clk 0:02:57.4]} 4... e6 {[%clk 0:03:01.3]} 5. d4 {[%clk 0:02:55.8]}
5... cxd4 {[%clk 0:03:00.2]} 6. Nxd4 {[%clk 0:02:56.1]} 6... Nf6 {[%clk
0:03:00.2]} 7. Be3 {[%clk 0:02:56.3]} 7... Be7 {[%clk 0:03:00.4]} 8. Qf3 {[%clk
0:02:56.1]} 8... a6 {[%clk 0:03:00.6]} 9. O-O-O {[%clk 0:02:55.5]} 9... Qc7
{[%clk 0:02:58.6]} 10. g4 {[%clk 0:02:55.5]} 10... b5 {[%clk 0:02:49.5]} 11. e5
{[%clk 0:02:52.3]} 11... Nd5 {[%clk 0:02:35.3]} 12. Nxd5 {[%clk 0:02:50.2]}
12... exd5 {[%clk 0:02:35.5]} 13. Qxd5 {[%clk 0:02:45.4]} 13... Bb7 {[%clk
0:02:35.8]} 14. exd6 {[%clk 0:02:36]} 14... Bxd6 {[%clk 0:02:26.2]} 15. Nf5
{[%clk 0:02:14.9]} 15... Bxf4 {[%clk 0:02:11.7]} 16. Qc5 {[%clk 0:01:06.1]}
16... Ne7 {[%clk 0:01:13.8]} 17. Qxc7 {[%clk 0:00:49.3]} 17... Bxc7 {[%clk
0:01:12.4]} 18. Rg1 {[%clk 0:00:44.4]} 18... Nxf5 {[%clk 0:01:07.2]} 19. gxf5
{[%clk 0:00:45.3]} 19... Bxh2 {[%clk 0:00:57.2]} 20. Rxg7 {[%clk 0:00:42.4]}
20... Be5 {[%clk 0:00:56.2]} 21. Rg1 {[%clk 0:00:31.4]} 21... Rd8 {[%clk
0:00:51.8]} 22. Bd3 {[%clk 0:00:28.3]} 22... h5 {[%clk 0:00:41]} 23. Rge1 {[%clk
0:00:28.5]} 23... Kf8 {[%clk 0:00:36]} 24. Bc5+ {[%clk 0:00:26.5]} 24... Bd6
{[%clk 0:00:35.5]} 25. Bf1 {[%clk 0:00:20.6]} 25... Rh6 {[%clk 0:00:30.8]} 26.
Rxd6 {[%clk 0:00:18.1]} 26... Rhxd6 {[%clk 0:00:29.6]} 27. Rd1 {[%clk
0:00:18.2]} 27... Ke7 {[%clk 0:00:25.9]} 28. f6+ {[%clk 0:00:17.7]} 28... Ke6
{[%clk 0:00:25.8]} 29. Bh3+ {[%clk 0:00:17.8]} 29... Ke5 {[%clk 0:00:25.9]} 30.
Rxd6 {[%clk 0:00:15.6]} 30... Rxd6 {[%clk 0:00:25.3]} 31. Bxd6+ {[%clk
0:00:16.5]} 31... Kxd6 {[%clk 0:00:25.6]} 32. Kd2 {[%clk 0:00:16.6]} 32... Ke5
{[%clk 0:00:25.2]} 33. Ke3 {[%clk 0:00:17]} 33... Kxf6 {[%clk 0:00:24.4]} 34.
Kf4 {[%clk 0:00:17.9]} 34... Bd5 {[%clk 0:00:23.3]} 35. b3 {[%clk 0:00:18]}
35... Be6 {[%clk 0:00:23.1]} 36. Bg2 {[%clk 0:00:17.4]} 36... b4 {[%clk
0:00:21.8]} 37. Bf1 {[%clk 0:00:15.3]} 37... a5 {[%clk 0:00:21.6]} 38. Ke3
{[%clk 0:00:14.6]} 38... h4 {[%clk 0:00:21.5]} 39. c3 {[%clk 0:00:15.2]} 39...
bxc3 {[%clk 0:00:19.4]} 40. Kd3 {[%clk 0:00:15.7]} 40... h3 {[%clk 0:00:18.5]}
41. Kxc3 {[%clk 0:00:16.2]} 41... Ke5 {[%clk 0:00:16]} 42. b4 {[%clk 0:00:15.2]}
42... axb4+ {[%clk 0:00:14.8]} 43. Kxb4 {[%clk 0:00:16.1]} 43... h2 {[%clk
0:00:13.5]} 0-1

[Event "*** SCC Grand Prix: Titled Tuesday Blitz"]
[Site "Chess.com"]
[Date "2020.08.25"]
[Round "10"]
[White "evgenyermolaev"]
[Black "Mikhail_Golubev"]
[Result "1-0"]
[WhiteElo "2488"]
[BlackElo "2607"]
[TimeControl "180+1"]
[EndTime "11:59:52 PDT"]
[Termination "evgenyermolaev won on time"]

1. d4 {[%clk 0:03:00.9]} 1... Nf6 {[%clk 0:02:59.1]} 2. Nc3 {[%clk 0:03:00.4]}
2... g6 {[%clk 0:02:57.7]} 3. e4 {[%clk 0:02:59.7]} 3... d6 {[%clk 0:02:58.2]}
4. Bg5 {[%clk 0:02:59.6]} 4... Bg7 {[%clk 0:02:58.1]} 5. e5 {[%clk 0:02:59.3]}
5... Nfd7 {[%clk 0:02:49.6]} 6. f4 {[%clk 0:02:55.1]} 6... h6 {[%clk 0:02:27]}
7. Bh4 {[%clk 0:02:54.7]} 7... g5 {[%clk 0:02:27.2]} 8. fxg5 {[%clk 0:02:28.9]}
8... dxe5 {[%clk 0:02:21.9]} 9. dxe5 {[%clk 0:02:26.9]} 9... hxg5 {[%clk
0:02:03.6]} 10. Bxg5 {[%clk 0:02:22.9]} 10... Bxe5 {[%clk 0:02:03.5]} 11. Nf3
{[%clk 0:02:05]} 11... Bg3+ {[%clk 0:02:03.3]} 12. hxg3 {[%clk 0:02:04.5]} 12...
Rxh1 {[%clk 0:02:02.2]} 13. Nd5 {[%clk 0:01:46.4]} 13... Nc6 {[%clk 0:01:50.1]}
14. Qe2 {[%clk 0:01:32.2]} 14... Nb6 {[%clk 0:01:37.1]} 15. Nf6+ {[%clk
0:01:16.7]} 15... Kf8 {[%clk 0:01:35.8]} 16. Rd1 {[%clk 0:01:16.4]} 16... Nd7
{[%clk 0:01:03]} 17. Nd5 {[%clk 0:01:01.9]} 17... f6 {[%clk 0:00:40.5]} 18. Nf4
{[%clk 0:00:24]} 18... Qe8 {[%clk 0:00:40.4]} 19. Ne6+ {[%clk 0:00:20.9]} 19...
Kg8 {[%clk 0:00:38]} 20. Nxc7 {[%clk 0:00:21.8]} 20... Qf7 {[%clk 0:00:38.2]}
21. Nxa8 {[%clk 0:00:10.6]} 21... fxg5 {[%clk 0:00:37.7]} 22. Nxg5 {[%clk
0:00:09.9]} 22... Qg7 {[%clk 0:00:25.3]} 23. Qe6+ {[%clk 0:00:08.2]} 23... Kh8
{[%clk 0:00:15.7]} 24. Nf7+ {[%clk 0:00:07.6]} 24... Kh7 {[%clk 0:00:15.2]} 25.
Qf5+ {[%clk 0:00:07.4]} 25... Kg8 {[%clk 0:00:13.5]} 26. Ng5 {[%clk 0:00:05.9]}
26... Nb6 {[%clk 0:00:11.4]} 27. Qb5 {[%clk 0:00:04.2]} 27... Nxa8 {[%clk
0:00:09.1]} 28. Qc4+ {[%clk 0:00:04.4]} 28... e6 {[%clk 0:00:08.7]} 29. Nxe6
{[%clk 0:00:04.2]} 29... Qe5+ {[%clk 0:00:07.7]} 30. Kf2 {[%clk 0:00:04.2]}
30... Qxe6 {[%clk 0:00:07.1]} 31. Qf4 {[%clk 0:00:03.6]} 31... Rg1 {[%clk
0:00:01.3]} 32. Bc4 {[%clk 0:00:03.7]} 1-0

[Event "*** SCC Grand Prix: Titled Tuesday Blitz"]
[Site "Chess.com"]
[Date "2020.08.25"]
[Round "10"]
[White "GustavoJuarezF"]
[Black "larisakalinina"]
[Result "1-0"]
[WhiteElo "2049"]
[BlackElo "1959"]
[TimeControl "180+1"]
[EndTime "11:59:57 PDT"]
[Termination "GustavoJuarezF won on time"]

1. e4 {[%clk 0:03:00.9]} 1... c5 {[%clk 0:03:00.3]} 2. Nf3 {[%clk 0:02:56.7]}
2... Nc6 {[%clk 0:03:00.6]} 3. d4 {[%clk 0:02:56.1]} 3... cxd4 {[%clk
0:03:01.5]} 4. Nxd4 {[%clk 0:02:55.8]} 4... Nf6 {[%clk 0:03:01.9]} 5. Nc3 {[%clk
0:02:55.9]} 5... d6 {[%clk 0:03:00.7]} 6. Bg5 {[%clk 0:02:53.4]} 6... Bd7 {[%clk
0:02:58.3]} 7. Qd2 {[%clk 0:02:52.9]} 7... Rc8 {[%clk 0:02:56.6]} 8. O-O-O
{[%clk 0:02:52.7]} 8... Nxd4 {[%clk 0:02:55.1]} 9. Qxd4 {[%clk 0:02:51.9]} 9...
Qa5 {[%clk 0:02:51.3]} 10. Bxf6 {[%clk 0:02:46.1]} 10... gxf6 {[%clk 0:02:49.9]}
11. Kb1 {[%clk 0:02:45.4]} 11... Rg8 {[%clk 0:02:36.5]} 12. f4 {[%clk
0:02:38.5]} 12... f5 {[%clk 0:02:19.5]} 13. Bc4 {[%clk 0:02:23.7]} 13... fxe4
{[%clk 0:02:04.6]} 14. Qxe4 {[%clk 0:02:15.5]} 14... Bf5 {[%clk 0:01:30.3]} 15.
Qd5 {[%clk 0:02:03.4]} 15... Qxd5 {[%clk 0:01:27.5]} 16. Bxd5 {[%clk 0:02:01.1]}
16... b6 {[%clk 0:01:17.7]} 17. g3 {[%clk 0:01:50.1]} 17... e6 {[%clk
0:01:10.6]} 18. Be4 {[%clk 0:01:46.3]} 18... Bg4 {[%clk 0:00:54.2]} 19. Rd2
{[%clk 0:01:44.4]} 19... Bg7 {[%clk 0:00:53.3]} 20. Nb5 {[%clk 0:01:43.5]} 20...
d5 {[%clk 0:00:45.8]} 21. Nd6+ {[%clk 0:01:41.2]} 21... Ke7 {[%clk 0:00:45.8]}
22. Nxc8+ {[%clk 0:01:40]} 22... Rxc8 {[%clk 0:00:46.1]} 23. Bg2 {[%clk
0:01:38.8]} 23... Bf5 {[%clk 0:00:39.4]} 24. Re1 {[%clk 0:01:36.5]} 24... Kf8
{[%clk 0:00:29.8]} 25. h3 {[%clk 0:01:35.1]} 25... h5 {[%clk 0:00:28.4]} 26. Bf1
{[%clk 0:01:18.7]} 26... Bf6 {[%clk 0:00:18.1]} 27. Be2 {[%clk 0:01:12.1]} 27...
Bg6 {[%clk 0:00:17.9]} 28. g4 {[%clk 0:01:08.3]} 28... hxg4 {[%clk 0:00:18.2]}
29. hxg4 {[%clk 0:01:07.2]} 29... Be4 {[%clk 0:00:17.5]} 30. Rf1 {[%clk
0:01:00.6]} 30... Ke7 {[%clk 0:00:15.1]} 31. Bf3 {[%clk 0:01:00.6]} 31... Bxf3
{[%clk 0:00:13]} 32. Rxf3 {[%clk 0:00:59.7]} 32... Rh8 {[%clk 0:00:13.3]} 33. c3
{[%clk 0:00:55.5]} 33... Rh1+ {[%clk 0:00:12.7]} 34. Kc2 {[%clk 0:00:54.5]}
34... Kd6 {[%clk 0:00:10.4]} 35. g5 {[%clk 0:00:53.6]} 35... Be7 {[%clk
0:00:09.1]} 36. c4 {[%clk 0:00:47.7]} 36... Kc5 {[%clk 0:00:08.7]} 37. cxd5
{[%clk 0:00:46.5]} 37... exd5 {[%clk 0:00:09.1]} 38. Rc3+ {[%clk 0:00:46.5]}
38... Kd6 {[%clk 0:00:06.6]} 39. Rcd3 {[%clk 0:00:46.6]} 39... Kc6 {[%clk
0:00:05.3]} 40. Rxd5 {[%clk 0:00:46.2]} 40... Bc5 {[%clk 0:00:05.5]} 41. R5d3
{[%clk 0:00:40.9]} 41... Rf1 {[%clk 0:00:05.2]} 42. Rc3 {[%clk 0:00:36.5]} 42...
a5 {[%clk 0:00:02.8]} 43. a3 {[%clk 0:00:33.5]} 43... Kb5 {[%clk 0:00:02]} 44.
Rd5 {[%clk 0:00:22.7]} 1-0

[Event "*** SCC Grand Prix: Titled Tuesday Blitz"]
[Site "Chess.com"]
[Date "2020.08.25"]
[Round "10"]
[White "Ausbildung"]
[Black "kleopl"]
[Result "0-1"]
[WhiteElo "2248"]
[BlackElo "2431"]
[TimeControl "180+1"]
[EndTime "12:00:00 PDT"]
[Termination "kleopl won by resignation"]

1. e4 {[%clk 0:03:00.9]} 1... c6 {[%clk 0:02:59.6]} 2. d4 {[%clk 0:03:00]} 2...
d5 {[%clk 0:03:00.5]} 3. exd5 {[%clk 0:02:59.8]} 3... cxd5 {[%clk 0:03:01.4]} 4.
Bd3 {[%clk 0:02:56.9]} 4... Nc6 {[%clk 0:03:00.6]} 5. c3 {[%clk 0:02:56.1]} 5...
Nf6 {[%clk 0:03:00.9]} 6. Ne2 {[%clk 0:02:53.8]} 6... Bg4 {[%clk 0:02:59.4]} 7.
O-O {[%clk 0:02:51.5]} 7... e6 {[%clk 0:02:58.9]} 8. f3 {[%clk 0:02:50.1]} 8...
Bh5 {[%clk 0:02:58.2]} 9. Qe1 {[%clk 0:02:48.2]} 9... Bd6 {[%clk 0:02:57.2]} 10.
Qh4 {[%clk 0:02:45]} 10... Ne7 {[%clk 0:02:34.7]} 11. Bg5 {[%clk 0:02:29.8]}
11... Bg6 {[%clk 0:02:27.5]} 12. Bb5+ {[%clk 0:02:27]} 12... Nc6 {[%clk
0:02:25]} 13. Nd2 {[%clk 0:02:18.6]} 13... a6 {[%clk 0:02:20.7]} 14. Ba4 {[%clk
0:02:14.8]} 14... h6 {[%clk 0:02:17.5]} 15. Bxf6 {[%clk 0:02:12]} 15... Qxf6
{[%clk 0:02:18.4]} 16. Qxf6 {[%clk 0:02:09.5]} 16... gxf6 {[%clk 0:02:19.3]} 17.
Rae1 {[%clk 0:01:59.3]} 17... Bd3 {[%clk 0:02:17.2]} 18. Rf2 {[%clk 0:01:50.8]}
18... h5 {[%clk 0:02:13.4]} 19. f4 {[%clk 0:01:39.9]} 19... O-O-O {[%clk
0:02:09.5]} 20. Nc1 {[%clk 0:01:05]} 20... Bf5 {[%clk 0:02:07.7]} 21. Bd1 {[%clk
0:01:04]} 21... Rdg8 {[%clk 0:02:03.7]} 22. Kh1 {[%clk 0:01:03.2]} 22... h4
{[%clk 0:01:58.4]} 23. Be2 {[%clk 0:01:02.2]} 23... Rg7 {[%clk 0:01:56.6]} 24.
Bd3 {[%clk 0:01:01.4]} 24... Bxd3 {[%clk 0:01:52.3]} 25. Nxd3 {[%clk 0:01:00.7]}
25... f5 {[%clk 0:01:52.5]} 26. Rg1 {[%clk 0:00:59]} 26... Rhg8 {[%clk
0:01:51.9]} 27. Nf3 {[%clk 0:00:52.6]} 27... Rg4 {[%clk 0:01:49.2]} 28. h3
{[%clk 0:00:50.9]} 28... Rg3 {[%clk 0:01:40.9]} 29. Nde1 {[%clk 0:00:48.7]}
29... Be7 {[%clk 0:01:38.2]} 30. Kh2 {[%clk 0:00:46.5]} 30... Bf6 {[%clk
0:01:37.9]} 31. Ne5 {[%clk 0:00:43.5]} 31... Nxe5 {[%clk 0:01:33]} 32. dxe5
{[%clk 0:00:42.9]} 32... Be7 {[%clk 0:01:32.5]} 33. Rf3 {[%clk 0:00:40.8]} 33...
Kd7 {[%clk 0:01:28.3]} 34. Rgf1 {[%clk 0:00:38.2]} 34... R3g6 {[%clk 0:01:23]}
35. Rd3 {[%clk 0:00:35.5]} 35... Rc8 {[%clk 0:01:22.5]} 36. Rf2 {[%clk
0:00:34.5]} 36... Rc4 {[%clk 0:01:17.8]} 37. Rd4 {[%clk 0:00:30.8]} 37... b5
{[%clk 0:01:16.6]} 38. Nf3 {[%clk 0:00:29.5]} 38... Rg8 {[%clk 0:01:13.9]} 39.
Rc2 {[%clk 0:00:24.9]} 39... Rc7 {[%clk 0:01:04.5]} 40. Rdd2 {[%clk 0:00:21.9]}
40... Rh8 {[%clk 0:01:02.2]} 41. Nd4 {[%clk 0:00:21.1]} 41... Bc5 {[%clk
0:01:01.5]} 42. Nf3 {[%clk 0:00:19.4]} 42... Be3 {[%clk 0:00:59.9]} 43. Rd3
{[%clk 0:00:18]} 43... Bxf4+ {[%clk 0:00:59.8]} 44. Kg1 {[%clk 0:00:18.2]} 44...
Bg3 {[%clk 0:00:59.6]} 45. b3 {[%clk 0:00:17.3]} 45... Rhc8 {[%clk 0:00:57.3]}
46. Kf1 {[%clk 0:00:14.7]} 46... Ke7 {[%clk 0:00:55.8]} 47. Ke2 {[%clk
0:00:14.3]} 47... b4 {[%clk 0:00:56.2]} 48. Kd2 {[%clk 0:00:11.1]} 48... Bf4+
{[%clk 0:00:55.8]} 49. Ke2 {[%clk 0:00:10.8]} 49... Rxc3 {[%clk 0:00:51]} 50.
Rdxc3 {[%clk 0:00:10.3]} 50... bxc3 {[%clk 0:00:46.9]} 51. Kd3 {[%clk
0:00:07.8]} 51... d4 {[%clk 0:00:43.6]} 52. Nxd4 {[%clk 0:00:05.8]} 52... Bxe5
{[%clk 0:00:42]} 53. Nf3 {[%clk 0:00:05.7]} 53... Bf6 {[%clk 0:00:41.8]} 54. Nd4
{[%clk 0:00:04.2]} 54... Rd8 {[%clk 0:00:40.3]} 0-1

[Event "*** SCC Grand Prix: Titled Tuesday Blitz"]
[Site "Chess.com"]
[Date "2020.08.25"]
[Round "10"]
[White "rynos0411"]
[Black "Nara_Kh"]
[Result "0-1"]
[WhiteElo "2417"]
[BlackElo "2327"]
[TimeControl "180+1"]
[EndTime "12:00:01 PDT"]
[Termination "Nara_Kh won by resignation"]

1. e4 {[%clk 0:03:00.9]} 1... c5 {[%clk 0:02:58.4]} 2. Nf3 {[%clk 0:03:00.9]}
2... d6 {[%clk 0:02:58.2]} 3. Bb5+ {[%clk 0:03:00.9]} 3... Nd7 {[%clk
0:02:56.9]} 4. c3 {[%clk 0:02:59.8]} 4... a6 {[%clk 0:02:55.9]} 5. Bd3 {[%clk
0:02:58.4]} 5... Ngf6 {[%clk 0:02:51.8]} 6. O-O {[%clk 0:02:58.2]} 6... e6
{[%clk 0:02:48.9]} 7. a4 {[%clk 0:02:58.1]} 7... Be7 {[%clk 0:02:48.5]} 8. Bc2
{[%clk 0:02:56.5]} 8... O-O {[%clk 0:02:47.5]} 9. d4 {[%clk 0:02:56.4]} 9... b6
{[%clk 0:02:46]} 10. Re1 {[%clk 0:02:54.8]} 10... Bb7 {[%clk 0:02:28.6]} 11.
Nbd2 {[%clk 0:02:45.3]} 11... Qc7 {[%clk 0:02:22.3]} 12. Nf1 {[%clk 0:02:42.8]}
12... Rac8 {[%clk 0:02:17]} 13. Ne3 {[%clk 0:02:38.3]} 13... Nxe4 {[%clk
0:02:05.3]} 14. Qe2 {[%clk 0:02:23.2]} 14... Nef6 {[%clk 0:01:51.5]} 15. b3
{[%clk 0:02:17]} 15... cxd4 {[%clk 0:01:32.2]} 16. cxd4 {[%clk 0:02:14.1]} 16...
Nd5 {[%clk 0:01:29.8]} 17. Nxd5 {[%clk 0:01:43.6]} 17... Bxd5 {[%clk 0:01:27.6]}
18. Ra2 {[%clk 0:01:44.1]} 18... Nf6 {[%clk 0:01:08.3]} 19. Ba3 {[%clk 0:01:40]}
19... Qc3 {[%clk 0:01:03.3]} 20. Rc1 {[%clk 0:01:36.1]} 20... Bxf3 {[%clk
0:00:54.1]} 21. gxf3 {[%clk 0:01:32.3]} 21... Qxd4 {[%clk 0:00:52.7]} 22. Bb2
{[%clk 0:01:32]} 22... Qf4 {[%clk 0:00:50.4]} 23. Raa1 {[%clk 0:01:27.9]} 23...
Rc5 {[%clk 0:00:48]} 24. Bd3 {[%clk 0:01:22.3]} 24... Rg5+ {[%clk 0:00:44.2]}
25. Kf1 {[%clk 0:01:14.4]} 25... d5 {[%clk 0:00:29.4]} 26. Qc2 {[%clk
0:00:54.9]} 26... Qxh2 {[%clk 0:00:27.1]} 27. Ke2 {[%clk 0:00:54.5]} 27... h6
{[%clk 0:00:17]} 28. Rh1 {[%clk 0:00:45.1]} 28... Qd6 {[%clk 0:00:13.2]} 29.
Rag1 {[%clk 0:00:45.6]} 29... Rxg1 {[%clk 0:00:11.4]} 30. Rxg1 {[%clk
0:00:46.5]} 30... Nh5 {[%clk 0:00:10.7]} 31. Kd1 {[%clk 0:00:29.4]} 31... e5
{[%clk 0:00:07.5]} 32. Bxa6 {[%clk 0:00:22.2]} 32... Nf4 {[%clk 0:00:06.6]} 33.
Bb5 {[%clk 0:00:18.6]} 33... d4 {[%clk 0:00:06.5]} 34. Qe4 {[%clk 0:00:18]}
34... Rd8 {[%clk 0:00:04.4]} 35. Bc1 {[%clk 0:00:18.3]} 35... Qc5 {[%clk
0:00:03.9]} 36. Bxf4 {[%clk 0:00:17.7]} 36... exf4 {[%clk 0:00:04.1]} 37. Qxf4
{[%clk 0:00:18.2]} 37... Bg5 {[%clk 0:00:03.6]} 38. Qe4 {[%clk 0:00:18.7]} 38...
d3 {[%clk 0:00:03.1]} 39. f4 {[%clk 0:00:17.9]} 39... Qc2+ {[%clk 0:00:02.7]}
40. Ke1 {[%clk 0:00:18.5]} 40... d2+ {[%clk 0:00:03.1]} 41. Kf1 {[%clk
0:00:15.7]} 41... d1=Q+ {[%clk 0:00:03.7]} 42. Kg2 {[%clk 0:00:16.2]} 42...
Qxe4+ {[%clk 0:00:03.9]} 43. Kh2 {[%clk 0:00:16.1]} 43... Qxf4+ {[%clk
0:00:04.1]} 0-1

[Event "*** SCC Grand Prix: Titled Tuesday Blitz"]
[Site "Chess.com"]
[Date "2020.08.25"]
[Round "10"]
[White "cukin84"]
[Black "nitpicker"]
[Result "1-0"]
[WhiteElo "2069"]
[BlackElo "2211"]
[TimeControl "180+1"]
[EndTime "12:00:07 PDT"]
[Termination "cukin84 won on time"]

1. e4 {[%clk 0:03:00.9]} 1... d5 {[%clk 0:02:59.9]} 2. exd5 {[%clk 0:03:00.2]}
2... Qxd5 {[%clk 0:03:00]} 3. Nc3 {[%clk 0:02:59.7]} 3... Qd8 {[%clk 0:03:00]}
4. d4 {[%clk 0:02:59.5]} 4... Nf6 {[%clk 0:03:00]} 5. Nf3 {[%clk 0:02:58.3]}
5... c6 {[%clk 0:02:56.5]} 6. Bf4 {[%clk 0:02:54.7]} 6... Bf5 {[%clk 0:02:53.6]}
7. Bc4 {[%clk 0:02:53]} 7... e6 {[%clk 0:02:52.6]} 8. O-O {[%clk 0:02:51.5]}
8... Bd6 {[%clk 0:02:48.2]} 9. Ne5 {[%clk 0:02:50.5]} 9... O-O {[%clk
0:02:41.6]} 10. Re1 {[%clk 0:02:49.5]} 10... Qc7 {[%clk 0:02:40.2]} 11. Bg3
{[%clk 0:02:45.7]} 11... Nbd7 {[%clk 0:02:33.6]} 12. f4 {[%clk 0:02:44.8]} 12...
Nb6 {[%clk 0:02:31]} 13. Bd3 {[%clk 0:02:42.2]} 13... Rad8 {[%clk 0:02:19.6]}
14. Bxf5 {[%clk 0:02:34.6]} 14... exf5 {[%clk 0:02:20.5]} 15. Qf3 {[%clk
0:02:22.6]} 15... a6 {[%clk 0:02:13.6]} 16. Bh4 {[%clk 0:02:21.8]} 16... Be7
{[%clk 0:02:04.3]} 17. Ne2 {[%clk 0:02:16.5]} 17... Ne4 {[%clk 0:01:53.2]} 18.
Bxe7 {[%clk 0:02:14]} 18... Qxe7 {[%clk 0:01:54.1]} 19. c3 {[%clk 0:02:07.8]}
19... c5 {[%clk 0:01:41.2]} 20. Rad1 {[%clk 0:01:59.1]} 20... Qe6 {[%clk
0:01:32.5]} 21. Kh1 {[%clk 0:01:54.9]} 21... Qxa2 {[%clk 0:01:28]} 22. dxc5
{[%clk 0:01:51.2]} 22... Nxc5 {[%clk 0:01:24.2]} 23. b4 {[%clk 0:01:45.2]} 23...
Ne4 {[%clk 0:01:20.5]} 24. Nd4 {[%clk 0:01:43.8]} 24... Nf2+ {[%clk 0:01:13.5]}
25. Kg1 {[%clk 0:01:43.3]} 25... Nxd1 {[%clk 0:01:13.5]} 26. Rxd1 {[%clk
0:01:43.1]} 26... Qd5 {[%clk 0:01:10.1]} 27. Qh3 {[%clk 0:01:37]} 27... g6
{[%clk 0:01:05.4]} 28. Rf1 {[%clk 0:01:31.2]} 28... Nc4 {[%clk 0:01:03.8]} 29.
Qg3 {[%clk 0:01:23.9]} 29... Kh8 {[%clk 0:00:45.4]} 30. Nef3 {[%clk 0:01:18.1]}
30... Rfe8 {[%clk 0:00:40.9]} 31. Qh4 {[%clk 0:01:14.5]} 31... Kg7 {[%clk
0:00:32.2]} 32. Ng5 {[%clk 0:01:06.6]} 32... h6 {[%clk 0:00:28.5]} 33. Ngf3
{[%clk 0:01:06.6]} 33... Ne3 {[%clk 0:00:20.3]} 34. Rc1 {[%clk 0:00:58.7]} 34...
Ng4 {[%clk 0:00:19]} 35. h3 {[%clk 0:00:55.1]} 35... Qe4 {[%clk 0:00:14.8]} 36.
hxg4 {[%clk 0:00:53.3]} 36... Qe3+ {[%clk 0:00:14.4]} 37. Kh2 {[%clk 0:00:50.9]}
37... Qxf4+ {[%clk 0:00:12.5]} 38. Kh3 {[%clk 0:00:41.7]} 38... Qxc1 {[%clk
0:00:12.3]} 39. gxf5 {[%clk 0:00:41.6]} 39... Qe3 {[%clk 0:00:07.8]} 40. fxg6
{[%clk 0:00:36.8]} 40... fxg6 {[%clk 0:00:06.8]} 41. Qg3 {[%clk 0:00:33.5]}
41... Qe7 {[%clk 0:00:05.8]} 42. Nf5+ {[%clk 0:00:32.2]} 42... Kh7 {[%clk
0:00:06.1]} 43. Nxe7 {[%clk 0:00:32.2]} 43... Rxe7 {[%clk 0:00:06.8]} 44. Qh4
{[%clk 0:00:31.4]} 44... Rde8 {[%clk 0:00:06.3]} 45. Qd4 {[%clk 0:00:31.1]}
45... Re6 {[%clk 0:00:05.1]} 46. Kg3 {[%clk 0:00:29.7]} 46... R8e7 {[%clk
0:00:05.1]} 47. c4 {[%clk 0:00:29]} 47... Kg8 {[%clk 0:00:05.2]} 48. c5 {[%clk
0:00:28.7]} 48... Re4 {[%clk 0:00:04.3]} 49. Qd5+ {[%clk 0:00:28.8]} 49... Kg7
{[%clk 0:00:03.5]} 50. c6 {[%clk 0:00:27.9]} 50... bxc6 {[%clk 0:00:02.2]} 51.
Qxc6 {[%clk 0:00:28.1]} 51... Rxb4 {[%clk 0:00:01.2]} 52. Qxa6 {[%clk
0:00:27.4]} 1-0

[Event "*** SCC Grand Prix: Titled Tuesday Blitz"]
[Site "Chess.com"]
[Date "2020.08.25"]
[Round "10"]
[White "Haykoooo0o"]
[Black "Sychev_Klementy"]
[Result "1-0"]
[WhiteElo "2542"]
[BlackElo "2738"]
[TimeControl "180+1"]
[EndTime "12:00:08 PDT"]
[Termination "Haykoooo0o won by checkmate"]

1. d4 {[%clk 0:03:00.9]} 1... Nf6 {[%clk 0:02:55.1]} 2. Nf3 {[%clk 0:03:00.2]}
2... g6 {[%clk 0:02:51.7]} 3. Bf4 {[%clk 0:02:59.2]} 3... Bg7 {[%clk 0:02:51.5]}
4. h3 {[%clk 0:02:59.2]} 4... O-O {[%clk 0:02:51.2]} 5. e3 {[%clk 0:02:59.3]}
5... d6 {[%clk 0:02:49.2]} 6. Be2 {[%clk 0:02:59.1]} 6... c5 {[%clk 0:02:49.3]}
7. c3 {[%clk 0:02:58.5]} 7... Qb6 {[%clk 0:02:49.5]} 8. Qb3 {[%clk 0:02:53.7]}
8... Be6 {[%clk 0:02:49.1]} 9. Qxb6 {[%clk 0:02:53.5]} 9... axb6 {[%clk
0:02:50]} 10. a3 {[%clk 0:02:52.9]} 10... Bd5 {[%clk 0:02:47.6]} 11. O-O {[%clk
0:02:47.4]} 11... Bc6 {[%clk 0:02:47.4]} 12. Nbd2 {[%clk 0:02:46.8]} 12... Nbd7
{[%clk 0:02:44.4]} 13. Bh2 {[%clk 0:02:44.7]} 13... Rfd8 {[%clk 0:02:41.7]} 14.
Rac1 {[%clk 0:02:43.6]} 14... e5 {[%clk 0:02:34]} 15. Nc4 {[%clk 0:02:37.5]}
15... e4 {[%clk 0:02:18.8]} 16. Nfd2 {[%clk 0:02:23.9]} 16... d5 {[%clk
0:02:17.4]} 17. Ne5 {[%clk 0:02:23.5]} 17... Nxe5 {[%clk 0:02:15.5]} 18. Bxe5
{[%clk 0:02:24.4]} 18... Nd7 {[%clk 0:02:11.2]} 19. Bg3 {[%clk 0:02:19.3]} 19...
f5 {[%clk 0:01:59.1]} 20. Rfd1 {[%clk 0:02:03.2]} 20... g5 {[%clk 0:01:54.6]}
21. f3 {[%clk 0:01:50.7]} 21... Nf8 {[%clk 0:01:11.2]} 22. Rf1 {[%clk
0:01:28.8]} 22... Ne6 {[%clk 0:01:05.8]} 23. fxe4 {[%clk 0:01:26.4]} 23... fxe4
{[%clk 0:01:04.4]} 24. Bg4 {[%clk 0:01:24.6]} 24... Re8 {[%clk 0:01:04.2]} 25.
Rf5 {[%clk 0:01:10.8]} 25... h6 {[%clk 0:00:49.5]} 26. Rcf1 {[%clk 0:01:06.2]}
26... Rf8 {[%clk 0:00:44.5]} 27. Bd6 {[%clk 0:00:55.1]} 27... Rfd8 {[%clk
0:00:24.2]} 28. Bg3 {[%clk 0:00:45.9]} 28... cxd4 {[%clk 0:00:20.4]} 29. cxd4
{[%clk 0:00:44.6]} 29... Nxd4 {[%clk 0:00:20.2]} 30. exd4 {[%clk 0:00:42.5]}
30... Bxd4+ {[%clk 0:00:20.4]} 31. Kh1 {[%clk 0:00:43.1]} 31... Bxb2 {[%clk
0:00:19.1]} 32. Rf7 {[%clk 0:00:40]} 32... Rf8 {[%clk 0:00:18.3]} 33. Be6 {[%clk
0:00:35.9]} 33... Rxf7 {[%clk 0:00:18.1]} 34. Rxf7 {[%clk 0:00:35.5]} 34... Kh8
{[%clk 0:00:17.3]} 35. Nf1 {[%clk 0:00:28.6]} 35... Rxa3 {[%clk 0:00:13.6]} 36.
Bd6 {[%clk 0:00:24.4]} 36... Ra1 {[%clk 0:00:11.1]} 37. Kh2 {[%clk 0:00:24.6]}
37... b5 {[%clk 0:00:08.4]} 38. Ng3 {[%clk 0:00:23.8]} 38... Bd4 {[%clk
0:00:06.7]} 39. Nf5 {[%clk 0:00:22.9]} 39... Bg1+ {[%clk 0:00:05.9]} 40. Kg3
{[%clk 0:00:22.7]} 40... h5 {[%clk 0:00:02]} 41. Be5+ {[%clk 0:00:19]} 41... Kg8
{[%clk 0:00:01.6]} 42. Nh6# {[%clk 0:00:19.4]} 1-0